Workbook

Sheet Kragstütze
B2: System:
B15: Eingabe: | I15: Auswahl:
C16: EI = | D16: 7750 | E16: kNm² | F16: F = | G16: 900 | H16: kN
C17: EA = | D17: dehnstarr | E17: kN | F17: e = | G17: 0.1 | H17: m | I17: Ergebnis:
C18: h = | D18: 4 | E18: m | F18: W = | G18: 0 | H18: kN
F19: u2,imp = | G19: 0 | H19: m
B20: Ergebnisse:
C21: Kraft- und Verformungsgrößen
C22: Av | D22: Ah | E22: AM | F22: M1 | G22: M2 | H22: elast. u2 | I22: ges. u2
C23: kN | D23: kN | E23: kNm | F23: kNm | G23: kNm | H23: m | I23: m
B24: Iteration | H24: 0 | I24: =H24+$G$19 -> 0
B25: 0 | C25: =$G$16*1 -> 900 | D25: =-$G$18 -> 0 | E25: =-F25 -> 90 | F25: =-$G$16*($G$17+$G$19+H24)-$G$18*$D$18 -> -90 | G25: =-$G$16*$G$17 -> -90 | H25: =$D$18/$D$16*(0.5*$G$16*$G$17+1/3*$G$18*$D$18+1/3*$G$16*$G$19+5/12*$G$16*H24)*$D$18 -> 0.09290322581 | I25: =H25+$G$19 -> 0.09290322581
B26: 1 | C26: =$G$16*1 -> 900 | D26: =-$G$18 -> 0 | E26: =-F26 -> 173.6129032 | F26: =-$G$16*($G$17+$G$19+H25)-$G$18*$D$18 -> -173.6129032 | G26: =-$G$16*$G$17 -> -90 | H26: =$D$18/$D$16*(0.5*$G$16*$G$17+1/3*$G$18*$D$18+1/3*$G$16*$G$19+5/12*$G$16*H25)*$D$18 -> 0.1648283039 | I26: 0.1648283039
B27: 2 | C27: 900 | D27: 0 | E27: 238.3454735 | F27: -238.3454735 | G27: -90 | H27: 0.2205122352 | I27: 0.2205122352
B28: 3 | C28: 900 | D28: 0 | E28: 288.4610117 | F28: -288.4610117 | G28: -90 | H28: 0.2636223757 | I28: 0.2636223757
B29: 4 | C29: 900 | D29: 0 | E29: 327.2601381 | F29: -327.2601381 | G29: -90 | H29: 0.2969979683 | I29: 0.2969979683
B30: 5 | C30: 900 | D30: 0 | E30: 357.2981714 | F30: -357.2981714 | G30: -90 | H30: 0.3228371367 | I30: 0.3228371367
B31: 6 | C31: 900 | D31: 0 | E31: 380.553423 | F31: -380.553423 | G31: -90 | H31: 0.3428416542 | I31: 0.3428416542
B32: 7 | C32: 900 | D32: 0 | E32: 398.5574888 | F32: -398.5574888 | G32: -90 | H32: 0.3583290226 | I32: 0.3583290226
B33: 8 | C33: 900 | D33: 0 | E33: 412.4961204 | F33: -412.4961204 | G33: -90 | H33: 0.3703192433 | I33: 0.3703192433
B34: 9 | C34: 900 | D34: 0 | E34: 423.287319 | F34: -423.287319 | G34: -90 | H34: 0.3796019948 | I34: 0.3796019948
B35: 10 | C35: 900 | D35: 0 | E35: 431.6417954 | F35: -431.6417954 | G35: -90 | H35: 0.3867886412 | I35: 0.3867886412
B36: 11 | C36: 900 | D36: 0 | E36: =-F36 -> 438.109777 | F36: =-$G$16*($G$17+$G$19+H35)-$G$18*$D$18 -> -438.109777 | G36: -90 | H36: 0.3923524964 | I36: =H36+$G$19 -> 0.3923524964
B37: 12 | C37: 900 | D37: 0 | E37: 443.1172467 | F37: -443.1172467 | G37: -90 | H37: 0.3966599972 | I37: 0.3966599972 | J37: =IF(E37>1.01*E36,"Iteration unvollständig","12 Iterationen ausreichend") -> Iteration unvollständig
B55: Last-Verformungsdiagramm:
D56: Th. I. Ord. | E56: Th. II. Ord.
B57: Laststufe | C57: Lastgröße | D57: Verformung | E57: Verformung | F57: Iteration
B58: 0 | C58: 0 | D58: 0 | E58: 0 | F58: OK
B59: 1 | C59: 100 | D59: 0.01032258065 | E59: 0.01129411765 | F59: OK
B60: 2 | C60: 200 | D60: 0.02064516129 | E60: 0.02493506493 | F60: OK
B61: 3 | C61: 300 | D61: 0.03096774194 | E61: 0.0417391295 | F61: OK
B62: 4 | C62: 400 | D62: 0.04129032258 | E62: 0.06295076001 | F62: OK
B63: 5 | C63: 500 | D63: 0.05161290323 | E63: 0.09056447651 | F63: OK
B64: 6 | C64: 600 | D64: 0.06193548387 | E64: 0.1279763915 | F64: OK
B65: 7 | C65: 700 | D65: 0.07225806452 | E65: 0.1813731175 | F65: OK
B66: 8 | C66: 800 | D66: 0.08258064516 | E66: 0.2627715794 | F66: OK
B67: 9 | C67: 900 | D67: 0.09290322581 | E67: 0.3966599972 | F67: ??
B68: 10 | C68: 1000 | D68: 0.1032258065 | E68: 0.6341771304 | F68: ??
B69: 11 | C69: 1050 | D69: 0.1083870968 | E69: 0.8217568963 | F69: ??
B70: 12 | C70: 1100 | D70: 0.1135483871 | E70: 1.082348348 | F70: ??
B71: 13 | C71: 1150 | D71: 0.1187096774 | E71: 1.447484764 | F71: ??
B72: 14 | C72: 1200 | D72: 0.1238709677 | E72: 1.962016008 | F72: ??

Sheet Rahmen
B2: System: | F2: Formeln:
B15: Eingabe:
C16: EI = | D16: 34560 | E16: kNm² | F16: F = | G16: 800 | H16: kN
C17: L = | D17: 6 | E17: m | F17: W = | G17: 12 | H17: kN
C18: H = | D18: 6 | E18: m | F18: uR,imp = | G18: =D18/200 -> 0.03 | H18: m
B20: Ergebnisse:
C21: Kraft- und Verformungsgrößen
C22: Bv | D22: Bh | E22: Av | F22: Ah | G22: M2 | H22: uR
C23: kN | D23: kN | E23: kN | F23: kN | G23: kNm | H23: m
B24: Iteration | H24: =$G$18+0 -> 0.03
B25: 0 | C25: =$G$17*$D$18/$D$17+$G$16*($D$17+H24)/$D$17 -> 816 | D25: =-C25*H24/$D$18 -> -4.08 | E25: =$G$16-C25 -> -16 | F25: =D25-$G$17 -> -16.08 | G25: =E25*H24-F25*$D$18 -> 96 | H25: =$G$18+1/$D$16*(1/3*$D$17*G25*$D$17+1/3*$D$18*G25*$D$18) -> 0.09666666667
B26: 1 | C26: =$G$17*$D$18/$D$17+$G$16*($D$17+H25)/$D$17 -> 824.8888889 | D26: =-C26*H25/$D$18 -> -13.28987654 | E26: =$G$16-C26 -> -24.88888889 | F26: =D26-$G$17 -> -25.28987654 | G26: =E26*H25-F26*$D$18 -> 149.3333333 | H26: =$G$18+1/$D$16*(1/3*$D$17*G26*$D$17+1/3*$D$18*G26*$D$18) -> 0.1337037037
B27: 2 | C27: =$G$17*$D$18/$D$17+$G$16*($D$17+H26)/$D$17 -> 829.8271605 | D27: =-C27*H26/$D$18 -> -18.49182747 | E27: =$G$16-C27 -> -29.82716049 | F27: =D27-$G$17 -> -30.49182747 | G27: =E27*H26-F27*$D$18 -> 178.962963 | H27: 0.1542798354
B28: 3 | C28: =$G$17*$D$18/$D$17+$G$16*($D$17+H27)/$D$17 -> 832.5706447 | D28: =-C28*H27/$D$18 -> -21.40814367 | E28: =$G$16-C28 -> -32.57064472 | F28: =D28-$G$17 -> -33.40814367 | G28: =E28*H27-F28*$D$18 -> 195.4238683 | H28: 0.1657110197
B29: 4 | C29: 834.0948026 | D29: -23.03645004 | E29: -34.09480262 | F29: -35.03645004 | G29: 204.5688157 | H29: 0.1720616776
B30: 5 | C30: 834.941557 | D30: -23.94357416 | E30: -34.94155701 | F30: -35.94357416 | G30: 209.6493421 | H30: 0.1755898209
B31: 6 | C31: 835.4119761 | D31: -24.44830654 | E31: -35.41197612 | F31: -36.44830654 | G31: 212.4718567 | H31: 0.1775499005
B32: 7 | C32: 835.6733201 | D32: -24.72895247 | E32: -35.67332007 | F32: -36.72895247 | G32: 214.0399204 | H32: 0.1786388336
B33: 8 | C33: 835.8185111 | D33: -24.88494066 | E33: -35.81851115 | F33: -36.88494066 | G33: 214.9110669 | H33: 0.1792437964
B34: 9 | C34: =$G$17*$D$18/$D$17+$G$16*($D$17+H33)/$D$17 -> 835.8991729 | D34: =-C34*H33/$D$18 -> -24.97162353 | E34: =$G$16-C34 -> -35.89917286 | F34: =D34-$G$17 -> -36.97162353 | G34: =E34*H33-F34*$D$18 -> 215.3950372 | H34: 0.1795798869
B35: 10 | C35: =$G$17*$D$18/$D$17+$G$16*($D$17+H34)/$D$17 -> 835.9439849 | D35: =-C35*H34/$D$18 -> -25.01978771 | E35: =$G$16-C35 -> -35.94398492 | F35: =D35-$G$17 -> -37.01978771 | G35: =E35*H34-F35*$D$18 -> 215.6639095 | H35: 0.1797666038
